Departmental Area,Entity,Payment Date,Expense type,Expense Area,Supplier Name,Payment Reference,      Invoice Distribution Amount      ,Description,Supplier Type,Expenditure Type
UK Statistics Family,Office for National Statistics,03/07/2023,PPE - NON-PROPERTY (LEASED NON-PFI) - COST - ADDITIONS (AS LESSEE),IT Operations,Crown Hosting Data Centres Limited,271324,"63,051.20",Information Management Services,SME,Programme Expenditure
UK Statistics Family,Office for National Statistics,03/07/2023,Hosting,IT Operations,Crown Hosting Data Centres Limited,271324,2580,Information Management Services,SME,Programme Expenditure
UK Statistics Family,Office for National Statistics,03/07/2023,Buildings Under Construction,Property Newport,Vinci Construction UK Limited,271327,"123,560.57",Facilities Mangement Services,Large,Programme Expenditure
UK Statistics Family,Office for National Statistics,03/07/2023,Capital Minor Works <25K,Property Newport,Vinci Construction UK Limited,271327,"10,200.00",Facilities Mangement Services,Large,Programme Expenditure
UK Statistics Family,Office for National Statistics,03/07/2023,FM Contract Payments,Vinci Payments,Vinci Construction UK Limited,271327,"386,483.70",Facilities Mangement Services,Large,Programme Expenditure
UK Statistics Family,Office for National Statistics,03/07/2023,Exp - Short-Term Contract & Agency Staff - Full Cost,Business Change Support,Concept Information Technology Ltd T/A Concept Resourcing,271328,"3,133.13",Information Management Services,Large,Programme Expenditure
UK Statistics Family,Office for National Statistics,03/07/2023,Exp - Short-Term Contract & Agency Staff - Full Cost,Business Change Support,Concept Information Technology Ltd T/A Concept Resourcing,271328,"2,109.00",Information Management Services,Large,Programme Expenditure
UK Statistics Family,Office for National Statistics,03/07/2023,Exp - Short-Term Contract & Agency Staff - Full Cost,Business Change Support,Concept Information Technology Ltd T/A Concept Resourcing,271328,"8,294.53",Information Management Services,Large,Programme Expenditure
UK Statistics Family,Office for National Statistics,03/07/2023,Exp - Short-Term Contract & Agency Staff - Full Cost,Business Change Support,Concept Information Technology Ltd T/A Concept Resourcing,271328,"3,374.40",Information Management Services,Large,Programme Expenditure
UK Statistics Family,Office for National Statistics,03/07/2023,Exp - Short-Term Contract & Agency Staff - Full Cost,Business Change Support,Concept Information Technology Ltd T/A Concept Resourcing,271328,"18,548.35",Information Management Services,Large,Programme Expenditure
UK Statistics Family,Office for National Statistics,03/07/2023,Exp - Short-Term Contract & Agency Staff - Full Cost,Business Change Support,Concept Information Technology Ltd T/A Concept Resourcing,271328,"3,133.13",Information Management Services,Large,Programme Expenditure
UK Statistics Family,Office for National Statistics,03/07/2023,Exp - Short-Term Contract & Agency Staff - Full Cost,Business Change Support,Concept Information Technology Ltd T/A Concept Resourcing,271328,"3,796.20",Information Management Services,Large,Programme Expenditure
UK Statistics Family,Office for National Statistics,03/07/2023,Exp - Short-Term Contract & Agency Staff - Full Cost,Business Architecture Transformation And Statistical Strategy,Concept Information Technology Ltd T/A Concept Resourcing,271328,"1,898.10",Information Management Services,Large,Programme Expenditure
UK Statistics Family,Office for National Statistics,03/07/2023,Exp - Short-Term Contract & Agency Staff - Full Cost,"SUB-NATIONAL STATISTICS AND ANALYSIS
",Concept Information Technology Ltd T/A Concept Resourcing,271328,"1,054.50",Information Management Services,Large,Programme Expenditure
UK Statistics Family,Office for National Statistics,03/07/2023,Exp - Short-Term Contract & Agency Staff - Full Cost,"SUB-NATIONAL STATISTICS AND ANALYSIS
",Concept Information Technology Ltd T/A Concept Resourcing,271328,"4,007.10",Information Management Services,Large,Programme Expenditure
UK Statistics Family,Office for National Statistics,03/07/2023,Travel And Subsistence,Corporate Centre,Corporate Travel Management ,271335,"44,560.94",Travel and Accommodation,SME,Programme Expenditure
UK Statistics Family,Office for National Statistics,03/07/2023,Hosting,IT Operations,ITS Computing Limited,271336,"48,400.00",Information Management Services,Large,Programme Expenditure
UK Statistics Family,Office for National Statistics,03/07/2023,Postage,Survey Processing Centre,DHL Parcel Ltd,271339,"32,882.64",Postage,Large,Programme Expenditure
UK Statistics Family,Office for National Statistics,03/07/2023,Exp - Purchase Of Goods/Services - Contractors,Testing,La International,271342,"4,431.18",Information Management Services,SME,Programme Expenditure
UK Statistics Family,Office for National Statistics,03/07/2023,Exp - Purchase Of Goods/Services - Contractors,Testing,La International,271342,"3,981.18",Information Management Services,SME,Programme Expenditure
UK Statistics Family,Office for National Statistics,03/07/2023,Exp - Purchase Of Goods/Services - Contractors,Data Architecture,La International,271342,"7,963.56",Information Management Services,SME,Programme Expenditure
UK Statistics Family,Office for National Statistics,03/07/2023,Exp - Purchase Of Goods/Services - Contractors,Data Architecture,La International,271342,"1,712.47",Information Management Services,SME,Programme Expenditure
UK Statistics Family,Office for National Statistics,03/07/2023,Exp - Purchase Of Goods/Services - Contractors,IT Applications,La International,271342,"12,827.30",Information Management Services,SME,Programme Expenditure
UK Statistics Family,Office for National Statistics,03/07/2023,Specialist User Software And Hardware,Finance,Cdw Limited,271357,"184,834.21",Information Management Services,Large,Programme Expenditure
UK Statistics Family,Office for National Statistics,03/07/2023,"ICT Outsourcing, Maintenance And Support",Researcher Support And Data Access ,Equiniti-TopLevel,271360,29160,Information Management Services,SME,Programme Expenditure
UK Statistics Family,Office for National Statistics,03/07/2023,"ICT Outsourcing, Maintenance And Support",IT Operations,Equiniti-TopLevel,271360,"5,178.00",Information Management Services,SME,Programme Expenditure
UK Statistics Family,Office for National Statistics,04/07/2023,Hosting,CLOUD ARCHITECTURE,Amazon Web Services Inc,271656,"345,782.82",Information Management Services,Large,Programme Expenditure
UK Statistics Family,Office for National Statistics,04/07/2023,Exp - Purchase Of Goods/Services - Contractors,Testing,Parity Resources Limited,271658,"5,398.44",Information Management Services,Large,Programme Expenditure
UK Statistics Family,Office for National Statistics,04/07/2023,Exp - Purchase Of Goods/Services - Contractors,IT Operations,Parity Resources Limited,271658,"9,600.00",Information Management Services,Large,Programme Expenditure
UK Statistics Family,Office for National Statistics,04/07/2023,Exp - Short-Term Contract & Agency Staff - Full Cost,Interviewer Management FiF,Parity Resources Limited,271658,"15,091.85",Information Management Services,Large,Programme Expenditure
UK Statistics Family,Office for National Statistics,04/07/2023,Exp - Purchase Of Goods/Services - Census Field Costs,Interviewer Management FiF,Parity Resources Limited,271658,156.71,Information Management Services,Large,Programme Expenditure
UK Statistics Family,Office for National Statistics,04/07/2023,Exp - Short-Term Contract & Agency Staff - Full Cost,Interviewer Support,Parity Resources Limited,271658,348.84,Information Management Services,Large,Programme Expenditure
UK Statistics Family,Office for National Statistics,04/07/2023,Exp - Purchase Of Goods/Services - IT Contractual Services,Digital Publishing,Insight Direct,271659,"31,200.00",Information Management Services,Large,Programme Expenditure
UK Statistics Family,Office for National Statistics,04/07/2023,Surveys,Labour Market,Uswitch Limited,271662,"48,000.00",Data Acquisition,Large,Programme Expenditure
UK Statistics Family,Office for National Statistics,05/07/2023,Telecoms,IT Operations,High Speed Office (trading as hSo),271793,"21,924.00",Telecommunications,SME,Programme Expenditure
UK Statistics Family,Office for National Statistics,05/07/2023,Telecoms,IT Operations,High Speed Office (trading as hSo),271793,"7,632.00",Telecommunications,SME,Programme Expenditure
UK Statistics Family,Office for National Statistics,05/07/2023,Exp - Purchase Of Goods/Services - Contractors,Consultancy Management,Malikshaw Interim & Executive,271794,"16,315.20",Information Management Services,SME,Programme Expenditure
UK Statistics Family,Office for National Statistics,05/07/2023,Exp - Purchase Of Goods/Services - Contractors,Data Architecture,Malikshaw Interim & Executive,271794,"33,050.40",Information Management Services,SME,Programme Expenditure
UK Statistics Family,Office for National Statistics,05/07/2023,Exp - Purchase Of Goods/Services - IT Contractual Services,CLOUD ARCHITECTURE,CTS (Cloud Technology Solutions Ltd),271796,"106,251.60",Information Management Services,Large,Programme Expenditure
UK Statistics Family,Office for National Statistics,06/07/2023,Hosting,IT Operations,Crown Hosting Data Centres Limited,271920,"37,625.06",Information Management Services,SME,Programme Expenditure
UK Statistics Family,Office for National Statistics,06/07/2023,Exp - Purchase Of Goods/Services - Contractors,Programme Support,Certes Computing Ltd,271923,"17,160.00",Information Management Services,SME,Programme Expenditure
UK Statistics Family,Office for National Statistics,06/07/2023,Exp - Purchase Of Goods/Services - Contractors,Data Architecture,Certes Computing Ltd,271923,"9,180.36",Information Management Services,SME,Programme Expenditure
UK Statistics Family,Office for National Statistics,06/07/2023,Exp - Purchase Of Goods/Services - Contractors,CDIO UNGP,Certes Computing Ltd,271923,"7,057.58",Information Management Services,SME,Programme Expenditure
UK Statistics Family,Office for National Statistics,06/07/2023,Exp - Purchase Of Goods/Services - Contractors,Strategy And Architecture,Certes Computing Ltd,271923,"15,840.00",Information Management Services,SME,Programme Expenditure
UK Statistics Family,Office for National Statistics,06/07/2023,Exp - Purchase Of Goods/Services - Contractors,IT Applications,Certes Computing Ltd,271923,"14,398.56",Information Management Services,SME,Programme Expenditure
UK Statistics Family,Office for National Statistics,06/07/2023,Exp - Purchase Of Goods/Services - Contractors,Digital Delivery,Certes Computing Ltd,271923,"18,450.00",Information Management Services,SME,Programme Expenditure
UK Statistics Family,Office for National Statistics,06/07/2023,Exp - Purchase Of Goods/Services - Contractors,Data Architecture,SmartSourcing Ltd,271929,"26,184.96",Information Management Services,SME,Programme Expenditure
UK Statistics Family,Office for National Statistics,06/07/2023,Exp - Purchase Of Goods/Services - Contractors,IT Applications,SmartSourcing Ltd,271929,"3,600.00",Information Management Services,SME,Programme Expenditure
UK Statistics Family,Office for National Statistics,06/07/2023,Exp - Purchase Of Goods/Services - Contractors,IT Operations,SmartSourcing Ltd,271929,"24,480.00",Information Management Services,SME,Programme Expenditure
UK Statistics Family,Office for National Statistics,06/07/2023,Exp - Purchase Of Goods/Services - Contractors,ECONOMIC CHANGE,Talent International,271933,"12,420.00",Information Management Services,SME,Programme Expenditure
UK Statistics Family,Office for National Statistics,06/07/2023,Exp - Purchase Of Goods/Services - Contractors,DATA ENGINEERING OPERATIONS AND DELIVERY,Talent International,271933,"19,440.00",Information Management Services,SME,Programme Expenditure
UK Statistics Family,Office for National Statistics,06/07/2023,Rent Payable,PROPERTY LONDON 2MS,Government Property Agency (GPA),271935,"154,390.75",Property Lease,Large,Programme Expenditure
UK Statistics Family,Office for National Statistics,06/07/2023,Exp - Purchase Of Goods/Services - Other Facilities Costs,PROPERTY LONDON 2MS,Government Property Agency (GPA),271935,"9,112.50",Property Lease,Large,Programme Expenditure
UK Statistics Family,Office for National Statistics,06/07/2023,Business Rates,PROPERTY LONDON 2MS,Government Property Agency (GPA),271935,"84,033.25",Property Lease,Large,Programme Expenditure
UK Statistics Family,Office for National Statistics,07/07/2023,Surveys,Crime Statistics,Kantar Public UK Ltd.,272025,"41,580.00",Statistical Services,SME,Programme Expenditure
UK Statistics Family,Office for National Statistics,07/07/2023,Exp - Purchase Of Goods/Services - Contractors,Testing,LA FOSSE ASSOCIATES LIMITED,272027,"19,740.00",Information Management Services,Large,Programme Expenditure
UK Statistics Family,Office for National Statistics,07/07/2023,Exp - Purchase Of Goods/Services - Contractors,Data Architecture,LA FOSSE ASSOCIATES LIMITED,272027,"16,560.00",Information Management Services,Large,Programme Expenditure
UK Statistics Family,Office for National Statistics,07/07/2023,Exp - Permanent UK Staff - PRP Voucher Payments,ONS Corporate Funds,Edenred (UK Group) Limited,272030,"64,400.00",Performance Reward Vouchers,Large,Programme Expenditure
UK Statistics Family,Office for National Statistics,07/07/2023,Rent Payable,Property Newport,Government Property Agency (GPA),272037,"-20,264.00",Property Lease,Large,Programme Expenditure
UK Statistics Family,Office for National Statistics,07/07/2023,Rent Payable,Property Titchfield,Government Property Agency (GPA),272037,"22,791.70",Property Lease,Large,Programme Expenditure
UK Statistics Family,Office for National Statistics,07/07/2023,Rent Payable,Property Christchurch,Government Property Agency (GPA),272037,"-7,100.00",Property Lease,Large,Programme Expenditure
UK Statistics Family,Office for National Statistics,07/07/2023,Rent Payable,PROPERTY LONDON 2MS,Government Property Agency (GPA),272037,"308,781.50",Property Lease,Large,Programme Expenditure
UK Statistics Family,Office for National Statistics,07/07/2023,Other Goods And Services,PROPERTY LONDON 2MS,Government Property Agency (GPA),272037,"543,882.94",Property Lease,Large,Programme Expenditure
UK Statistics Family,Office for National Statistics,10/07/2023,Travel And Subsistence,Corporate Centre,Corporate Travel Management ,272140,"44,571.59",Travel and Accommodation,SME,Programme Expenditure
UK Statistics Family,Office for National Statistics,10/07/2023,Surveys,Crime Statistics,Kantar Public UK Ltd.,272148,"110,768.98",Statistical Services,SME,Programme Expenditure
UK Statistics Family,Office for National Statistics,10/07/2023,Exp - Purchase Of Goods/Services - Contractors,Data Capability,Parity Resources Limited,272150,"21,340.75",Information Management Services,Large,Programme Expenditure
UK Statistics Family,Office for National Statistics,10/07/2023,Exp - Purchase Of Goods/Services - Contractors,Data Architecture,Parity Resources Limited,272150,"3,848.40",Information Management Services,Large,Programme Expenditure
UK Statistics Family,Office for National Statistics,10/07/2023,Exp - Purchase Of Goods/Services - Contractors,CDIO UNGP,Parity Resources Limited,272150,"9,201.00",Information Management Services,Large,Programme Expenditure
UK Statistics Family,Office for National Statistics,10/07/2023,Exp - Purchase Of Goods/Services - Contractors,IT Applications,Parity Resources Limited,272150,"3,900.00",Information Management Services,Large,Programme Expenditure
UK Statistics Family,Office for National Statistics,11/07/2023,"ICT Outsourcing, Maintenance And Support",IT Operations,Microsoft Limited,272368,"130,278.00",Software Support and Maintenance,Large,Programme Expenditure
UK Statistics Family,Office for National Statistics,11/07/2023,Surveys,"External Surveys, Research and Insights",Natcen Social Research,272369,"42,908.14",Statistical Services,Large,Programme Expenditure
UK Statistics Family,Office for National Statistics,11/07/2023,Surveys,Interview Management IPS,Nisra,272376,"109,665.60",Statistical Services,Large,Programme Expenditure
UK Statistics Family,Office for National Statistics,11/07/2023,Exp - Short-Term Contract & Agency Staff - Full Cost,Finance,Talent International,272390,"3,940.58",Information Management Services,SME,Programme Expenditure
UK Statistics Family,Office for National Statistics,11/07/2023,Exp - Short-Term Contract & Agency Staff - Full Cost,REPROGRAPHICS,Talent International,272390,"3,853.92",Information Management Services,SME,Programme Expenditure
UK Statistics Family,Office for National Statistics,11/07/2023,Exp - Purchase Of Goods/Services - Contractors,Security Advisory,Talent International,272390,"17,099.77",Information Management Services,SME,Programme Expenditure
UK Statistics Family,Office for National Statistics,11/07/2023,Exp - Purchase Of Goods/Services - Contractors,Security Advisory,Talent International,272390,"1,799.98",Information Management Services,SME,Programme Expenditure
UK Statistics Family,Office for National Statistics,11/07/2023,Exp - Short-Term Contract & Agency Staff - Full Cost,Census & Soc Methodology Dd,Talent International,272390,"5,317.34",Information Management Services,SME,Programme Expenditure
UK Statistics Family,Office for National Statistics,11/07/2023,Exp - Purchase Of Goods/Services - Contractors,Tech Delivery Legacy Sp,Talent International,272390,"22,052.40",Information Management Services,SME,Programme Expenditure
UK Statistics Family,Office for National Statistics,11/07/2023,Exp - Purchase Of Goods And Services Consultants,INTEGRATED DATA STRATEGY AND DELIVERY,Deloitte,272395,"811,056.00",Consultancy,Large,Programme Expenditure
UK Statistics Family,Office for National Statistics,12/07/2023,End User Software And Hardware,IT Operations,Centerprise International Ltd,272552,"15,733.55",Software Licenses,Large,Programme Expenditure
UK Statistics Family,Office for National Statistics,12/07/2023,Specialist User Software And Hardware,IT Operations,Centerprise International Ltd,272552,"28,728.01",Software Licenses,Large,Programme Expenditure
UK Statistics Family,Office for National Statistics,12/07/2023,Exp - Purchase Of Goods/Services - Contractors,Testing,La International,272553,"13,187.58",Information Management Services,SME,Programme Expenditure
UK Statistics Family,Office for National Statistics,12/07/2023,Exp - Purchase Of Goods/Services - Contractors,Testing,La International,272553,"3,981.18",Information Management Services,SME,Programme Expenditure
UK Statistics Family,Office for National Statistics,12/07/2023,Exp - Purchase Of Goods/Services - Contractors,Data Architecture,La International,272553,8760.04,Information Management Services,SME,Programme Expenditure
UK Statistics Family,Office for National Statistics,12/07/2023,Exp - Purchase Of Goods/Services - Contractors,Data Architecture,La International,272553,"4,281.18",Information Management Services,SME,Programme Expenditure
UK Statistics Family,Office for National Statistics,12/07/2023,Exp - Purchase Of Goods/Services - Contractors,IT Operations,La International,272553,"24,643.20",Information Management Services,SME,Programme Expenditure
UK Statistics Family,Office for National Statistics,12/07/2023,Exp - Purchase Of Goods/Services - IT Contractual Services,PARTNERSHIP DEVELOPMENT,CGI IT UK Limited,272554,"370,028.40",Information Management Services,Large,Programme Expenditure
UK Statistics Family,Office for National Statistics,12/07/2023,Exp - Purchase Of Goods/Services - IT Contractual Services,IT Applications,Diegesis Limited,272561,"239,880.00",Information Management Services,Large,Programme Expenditure
UK Statistics Family,Office for National Statistics,12/07/2023,Exp - Purchase Of Goods/Services - Contractors,Data Capability,Parity Resources Limited,272565,"10,452.61",Information Management Services,Large,Programme Expenditure
UK Statistics Family,Office for National Statistics,12/07/2023,Exp - Purchase Of Goods/Services - Contractors,Security Advisory,Parity Resources Limited,272565,"18,042.00",Information Management Services,Large,Programme Expenditure
UK Statistics Family,Office for National Statistics,12/07/2023,Exp - Purchase Of Goods/Services - Contractors,Data Architecture,Parity Resources Limited,272565,"4,810.50",Information Management Services,Large,Programme Expenditure
UK Statistics Family,Office for National Statistics,12/07/2023,Exp - Purchase Of Goods/Services - Contractors,CDIO UNGP,Parity Resources Limited,272565,"9,201.00",Information Management Services,Large,Programme Expenditure
UK Statistics Family,Office for National Statistics,12/07/2023,Exp - Purchase Of Goods/Services - Contractors,IT Applications,Parity Resources Limited,272565,"3,900.00",Information Management Services,Large,Programme Expenditure
UK Statistics Family,Office for National Statistics,12/07/2023,Exp - Purchase Of Goods/Services - Contractors,IT Operations,Parity Resources Limited,272565,"4,800.00",Information Management Services,Large,Programme Expenditure
UK Statistics Family,Office for National Statistics,12/07/2023,Exp - Short-Term Contract & Agency Staff - Full Cost,Recruitment ,Talent International,272566,"2,658.17",Information Management Services,SME,Programme Expenditure
UK Statistics Family,Office for National Statistics,12/07/2023,Exp - Purchase Of Goods/Services - Contractors,IT Applications,Talent International,272566,"17,251.20",Information Management Services,SME,Programme Expenditure
UK Statistics Family,Office for National Statistics,12/07/2023,Exp - Purchase Of Goods/Services - Contractors,IT Operations,Talent International,272566,20699.72,Information Management Services,SME,Programme Expenditure
UK Statistics Family,Office for National Statistics,12/07/2023,Non IT Maintenance And Hire,Commercial Services,Marsh Commercial,272568,"43,185.00",Corporate Insurance Cover,Large,Programme Expenditure
UK Statistics Family,Office for National Statistics,12/07/2023,Exp - Purchase Of Goods/Services - IT Contractual Services,Digital Delivery,ANDigital Limited,272570,"151,308.00",Information Management Services,large,Programme Expenditure
UK Statistics Family,Office for National Statistics,12/07/2023,Exp - Purchase Of Goods/Services - IT Contractual Services,Digital Delivery,ANDigital Limited,272570,"41,088.00",Information Management Services,large,Programme Expenditure
UK Statistics Family,Office for National Statistics,13/07/2023,Exp - Purchase Of Goods/Services - IT Contractual Services,CLOUD ARCHITECTURE,CTS (Cloud Technology Solutions Ltd),272669,"-40,449.60",Information Management Services,Large,Programme Expenditure
UK Statistics Family,Office for National Statistics,13/07/2023,Hosting,CLOUD ARCHITECTURE,CTS (Cloud Technology Solutions Ltd),272669,189874.89,Information Management Services,Large,Programme Expenditure
UK Statistics Family,Office for National Statistics,13/07/2023,Exp - Purchase Of Goods And Services Consultants,Policy Secretariat,Parity Resources Limited,272674,370.06,Information Management Services,Large,Programme Expenditure
UK Statistics Family,Office for National Statistics,13/07/2023,Exp - Purchase Of Goods/Services - Contractors,BUSINESS STRATEGY PERFORMANCE AND PMO,Parity Resources Limited,272674,4080,Information Management Services,Large,Programme Expenditure
UK Statistics Family,Office for National Statistics,13/07/2023,Exp - Purchase Of Goods/Services - Contractors,Strategy And Architecture,Parity Resources Limited,272674,"28,210.36",Information Management Services,Large,Programme Expenditure
UK Statistics Family,Office for National Statistics,13/07/2023,Exp - Purchase Of Goods/Services - Contractors,Strategy And Architecture,Parity Resources Limited,272674,"4,210.50",Information Management Services,Large,Programme Expenditure
UK Statistics Family,Office for National Statistics,13/07/2023,Other Goods And Services,REPROGRAPHICS,Canon UK Ltd,272676,"36,048.07",Equipment Lease,Large,Programme Expenditure
UK Statistics Family,Office for National Statistics,13/07/2023,Exp - Purchase Of Goods/Services - IT Contractual Services,Digital Delivery,ANDigital Limited,272678,"63,912.00",Information Management Services,large,Programme Expenditure
UK Statistics Family,Office for National Statistics,14/07/2023,Surveys,Crime Statistics,Kantar Public UK Ltd.,272796,"240,680.27",Statistical Services,SME,Programme Expenditure
UK Statistics Family,Office for National Statistics,14/07/2023,Surveys,Crime Statistics,Kantar Public UK Ltd.,272796,"395,038.25",Statistical Services,SME,Programme Expenditure
UK Statistics Family,Office for National Statistics,17/07/2023,Exp - Purchase Of Goods/Services - IT Contractual Services,PARTNERSHIP DEVELOPMENT,Sas Software Ltd,272920,"37,800.00",Information Management Services,Large,Programme Expenditure
UK Statistics Family,Office for National Statistics,17/07/2023,Print & Post,REPROGRAPHICS,APS Group,272925,"25,779.53",Stationery,Large,Programme Expenditure
UK Statistics Family,Office for National Statistics,17/07/2023,Telecoms,IT Operations,Cdw Limited,272928,"35,536.80",Information Management Services,Large,Programme Expenditure
UK Statistics Family,Office for National Statistics,18/07/2023,Surveys,Crime Statistics,Kantar Public UK Ltd.,273129,"70,635.38",Statistical Services,SME,Programme Expenditure
UK Statistics Family,Office for National Statistics,18/07/2023,Exp - Purchase Of Goods/Services - Incentive Payments,Interviewer Support,Sodexo Motivation Solutions U.K. ltd,273132,"5,570.26",Survey Response Incentive Vouchers,Large,Programme Expenditure
UK Statistics Family,Office for National Statistics,18/07/2023,Exp - Purchase Of Goods/Services - Incentive Payments,Interviewer Support,Sodexo Motivation Solutions U.K. ltd,273132,59.20,Survey Response Incentive Vouchers,Large,Programme Expenditure
UK Statistics Family,Office for National Statistics,18/07/2023,Exp - Purchase Of Goods/Services - Incentive Payments,Interviewer Support,Sodexo Motivation Solutions U.K. ltd,273132,"24,204.95",Survey Response Incentive Vouchers,Large,Programme Expenditure
UK Statistics Family,Office for National Statistics,18/07/2023,Exp - Purchase Of Goods/Services - Accommodation & Bldng Management - Specialist Property Inspect,Property Services,Faithful+Gould,273135,"39,840.00",Property Inspection Services,SME,Programme Expenditure
UK Statistics Family,Office for National Statistics,19/07/2023,Exp - Purchase Of Goods/Services - IT Contractual Services,CLOUD ARCHITECTURE,Ibm United Kingdom Ltd,273293,"82,222.08",Information Management Services,Large,Programme Expenditure
UK Statistics Family,Office for National Statistics,19/07/2023,Exp - Purchase Of Goods/Services - IT Contractual Services,Strategy And Architecture,Ibm United Kingdom Ltd,273293,"130,652.02",Information Management Services,Large,Programme Expenditure
UK Statistics Family,Office for National Statistics,19/07/2023,Travel And Subsistence,Corporate Centre,Corporate Travel Management ,273294,46259.08,Travel and Accommodation,SME,Programme Expenditure
UK Statistics Family,Office for National Statistics,19/07/2023,Exp - Purchase Of Goods/Services - Incentive Payments,Interviewer Support,Sodexo Motivation Solutions U.K. ltd,273299,107872.02,Survey Response Incentive Vouchers,Large,Programme Expenditure
UK Statistics Family,Office for National Statistics,19/07/2023,Exp - Purchase Of Goods And Services Consultants,Analysis Microdata And Engagement,Parity Resources Limited,273300,"2,587.56",Information Management Services,Large,Programme Expenditure
UK Statistics Family,Office for National Statistics,19/07/2023,Exp - Purchase Of Goods/Services - Contractors,Security Advisory,Parity Resources Limited,273300,842.10,Information Management Services,Large,Programme Expenditure
UK Statistics Family,Office for National Statistics,19/07/2023,Exp - Purchase Of Goods/Services - Contractors,Security Advisory,Parity Resources Limited,273300,"18,105.16",Information Management Services,Large,Programme Expenditure
UK Statistics Family,Office for National Statistics,19/07/2023,Exp - Purchase Of Goods/Services - Contractors,Data Architecture,Parity Resources Limited,273300,"4,810.50",Information Management Services,Large,Programme Expenditure
UK Statistics Family,Office for National Statistics,19/07/2023,Exp - Short-Term Contract & Agency Staff - Full Cost,Interviewer Management FiF,Parity Resources Limited,273300,"20,842.03",Information Management Services,Large,Programme Expenditure
UK Statistics Family,Office for National Statistics,19/07/2023,Exp - Purchase Of Goods/Services - Census Field Costs,Interviewer Management FiF,Parity Resources Limited,273300,268.88,Information Management Services,Large,Programme Expenditure
UK Statistics Family,Office for National Statistics,19/07/2023,Exp - Short-Term Contract & Agency Staff - Full Cost,Interviewer Support,Parity Resources Limited,273300,792.30,Information Management Services,Large,Programme Expenditure
UK Statistics Family,Office for National Statistics,19/07/2023,Telecoms,IT Operations,Bt Global Services,273303,"25,918.43",Telecommunications,Large,Programme Expenditure
UK Statistics Family,Office for National Statistics,20/07/2023,"ICT Outsourcing, Maintenance And Support",Interviewer Support,Totalmobile Ltd,273448,"17,640.00",Information Management Services,SME,Programme Expenditure
UK Statistics Family,Office for National Statistics,20/07/2023,"ICT Outsourcing, Maintenance And Support",Interviewer Support,Totalmobile Ltd,273448,"127,170.00",Information Management Services,SME,Programme Expenditure
UK Statistics Family,Office for National Statistics,21/07/2023,Hosting,IT Operations,ITS Computing Limited,273578,"48,400.00",Information Management Services,Large,Programme Expenditure
UK Statistics Family,Office for National Statistics,21/07/2023,"ICT Outsourcing, Maintenance And Support",Security Operations,Deloitte,273586,"120,000.00",Consultancy,Large,Programme Expenditure
UK Statistics Family,Office for National Statistics,25/07/2023,Capital Major Works >25K,Property Christchurch,Vinci Construction UK Limited,273946,372471.79,Facilities Mangement Services,Large,Programme Expenditure
UK Statistics Family,Office for National Statistics,25/07/2023,Exp - Purchase Of Goods/Services - Incentive Payments,Interviewer Support,Sodexo Motivation Solutions U.K. ltd,273948,"1,363.43",Survey Response Incentive Vouchers,Large,Programme Expenditure
UK Statistics Family,Office for National Statistics,25/07/2023,Exp - Purchase Of Goods/Services - Incentive Payments,Interviewer Support,Sodexo Motivation Solutions U.K. ltd,273948,"30,199.41",Survey Response Incentive Vouchers,Large,Programme Expenditure
UK Statistics Family,Office for National Statistics,25/07/2023,Exp - Purchase Of Goods/Services - Incentive Payments,Interviewer Support,Sodexo Motivation Solutions U.K. ltd,273948,266.49,Survey Response Incentive Vouchers,Large,Programme Expenditure
UK Statistics Family,Office for National Statistics,25/07/2023,Exp - Purchase Of Goods/Services - Incentive Payments,Interviewer Support,Sodexo Motivation Solutions U.K. ltd,273948,"7,794.53",Survey Response Incentive Vouchers,Large,Programme Expenditure
UK Statistics Family,Office for National Statistics,25/07/2023,Exp - Purchase Of Goods/Services - Other Facilities Costs,PROPERTY LONDON 2MS,Government Property Agency (GPA),273954,"437,783.40",Property Lease,Large,Programme Expenditure
UK Statistics Family,Office for National Statistics,25/07/2023,"ICT Outsourcing, Maintenance And Support",IT Operations,Government Property Agency (GPA),273954,"-14,342.40",Property Lease,Large,Programme Expenditure
UK Statistics Family,Office for National Statistics,26/07/2023,End User Software And Hardware,IT Operations,Somerford Associates,274091,"639,697.68",Software Licenses,Large,Programme Expenditure
UK Statistics Family,Office for National Statistics,26/07/2023,Exp - Purchase Of Goods And Services Consultants,INTEGRATED DATA STRATEGY AND DELIVERY,Deloitte,274100,"619,164.00",Consultancy,Large,Programme Expenditure
UK Statistics Family,Office for National Statistics,26/07/2023,Rent Payable,Property Darlington,Government Property Agency (GPA),274101,15870.75,Property Lease,Large,Programme Expenditure
UK Statistics Family,Office for National Statistics,26/07/2023,Other Goods And Services,Property Darlington,Government Property Agency (GPA),274101,"35,436.43",Property Lease,Large,Programme Expenditure
UK Statistics Family,Office for National Statistics,26/07/2023,"ICT Outsourcing, Maintenance And Support",IT Operations,Government Property Agency (GPA),274101,"5,844.60",Property Lease,Large,Programme Expenditure
UK Statistics Family,Office for National Statistics,26/07/2023,End User Software And Hardware,IT Operations,denodo,274104,343440,Software Licenses,SME,Programme Expenditure
UK Statistics Family,Office for National Statistics,27/07/2023,Buildings Under Construction,Property Christchurch,Vinci Construction UK Limited,274212,"138,677.80",Facilities Mangement Services,Large,Programme Expenditure
UK Statistics Family,Office for National Statistics,27/07/2023,Other Goods And Services,Security And Information Management Saim,Cabinet Office,274217,"130,811.40",Security Vetting Services,Large,Programme Expenditure
UK Statistics Family,Office for National Statistics,14/07/2023,Stationery,Lodgecard,Royal Bank of Scotland,30004210,"1,241.01",Multiple Procurement Card Purchases  - Stationery ,Large,Programme Expenditure
UK Statistics Family,Office for National Statistics,14/07/2023,Other Goods And Services,GPC,Royal Bank of Scotland,30004210,"38,287.73",Multiple Procurement Card Purchases - other goods/services  ,Large,Programme Expenditure
UK Statistics Family,Office for National Statistics,14/07/2023,Travel And Subsistence,Car Hire,Royal Bank of Scotland,30004210,"20,733.19",Multiple Procurement Card Purchases - Vehicle Hire  ,Large,Programme Expenditure
UK Statistics Family,Office for National Statistics,18/07/2023,Electricity,Property Titchfield,Edf Energy,30004221,"25,882.85",Utility Costs,Large,Programme Expenditure
UK Statistics Family,Office for National Statistics,20/07/2023,Electricity,Property Newport,Edf Energy,30004225,"31,953.69",Utility Costs,Large,Programme Expenditure
UK Statistics Family,Office for National Statistics,25/07/2023,EXP - PURCHASE OF GOODS/SERVICES -  NON IT CONTRACTUAL PAYMENTS,Crime Statistics,Edinburgh Innovations,30004230,58294.55,Development and Feasibility Services,SME,Programme Expenditure
UK Statistics Family,Office for National Statistics,28/07/2023,FM Contract Payments,Vinci Payments,Vinci Construction UK Limited,30004236,333672.98,Facilities Mangement Services,Large,Programme Expenditure
UK Statistics Family,Office for National Statistics,31/07/2023,PPE - NON-PROPERTY (LEASED NON-PFI) - COST - ADDITIONS (AS LESSEE),IT Operations,Crown Hosting Data Centres Limited,30004241,"63,051.46",Information Management Services,SME,Programme Expenditure
UK Statistics Family,Office for National Statistics,31/07/2023,Exp - Purchase Of Goods/Services - Contractors,Data Architecture,La International,30004248,"26,774.48",Information Management Services,SME,Programme Expenditure
UK Statistics Family,Office for National Statistics,31/07/2023,Exp - Purchase Of Goods/Services - Contractors,Data Architecture,La International,30004248,"3,982.38",Information Management Services,SME,Programme Expenditure
,,,,,,,"10,758,010.91",,,
